[Event "Titled Tuesday Blitz May 10 Early 2022"]
[White "Winkels, Marcel"]
[Black "Shohat, Yotam"]
[WhiteFideId "1003887"]
[BlackFideId "2813955"]
[WhiteElo "1900"]
[BlackElo "2119"]
[Result "0-1"]
[Round "02"]
[TimeControl "180+1"]
[Date "2022.05.11"]
[WhiteClock "0:00:01"]
[BlackClock "0:00:06"]

1. e4 {[%clk 0:03:00]}  c5 {[%clk 0:02:59]} 2. Nf3 {[%clk 0:02:58]}  Nc6 {[%clk 0:02:58]} 3. Bb5 {[%clk 0:02:56]}  Nf6 {[%clk 0:02:58]} 4. Nc3 {[%clk 0:02:55]}  g6 {[%clk 0:02:58]} 5. O-O {[%clk 0:02:54]}  Bg7 {[%clk 0:02:56]} 6. d3 {[%clk 0:02:51]}  O-O {[%clk 0:02:55]} 7. h3 {[%clk 0:02:48]}  Qc7 {[%clk 0:02:51]} 8. Be3 {[%clk 0:02:47]}  d6 {[%clk 0:02:47]} 9. Qd2 {[%clk 0:02:46]}  Rd8 {[%clk 0:02:39]} 10. Nd5 {[%clk 0:02:19]}  Nxd5 {[%clk 0:02:36]} 11. exd5 {[%clk 0:02:19]}  Nd4 {[%clk 0:02:34]} 12. Nxd4 {[%clk 0:02:11]}  cxd4 {[%clk 0:02:35]} 13. Bf4 {[%clk 0:02:10]}  a6 {[%clk 0:02:30]} 14. Bc4 {[%clk 0:02:08]}  b5 {[%clk 0:02:30]} 15. Bb3 {[%clk 0:02:08]}  Bb7 {[%clk 0:02:30]} 16. Rfe1 {[%clk 0:02:07]}  Re8 {[%clk 0:02:29]} 17. a4 {[%clk 0:02:01]}  Qc5 {[%clk 0:02:26]} 18. axb5 {[%clk 0:02:00]}  axb5 {[%clk 0:02:27]} 19. Rxa8 {[%clk 0:01:56]}  Bxa8 {[%clk 0:02:28]} 20. Bg5 {[%clk 0:01:51]}  Kf8 {[%clk 0:02:01]} 21. Qa5 {[%clk 0:01:38]}  f6 {[%clk 0:01:49]} 22. Bf4 {[%clk 0:01:35]}  Bxd5 {[%clk 0:01:46]} 23. Bxd5 {[%clk 0:01:33]}  Qxd5 {[%clk 0:01:47]} 24. Qc7 {[%clk 0:01:20]}  Qc5 {[%clk 0:01:33]} 25. Qb7 {[%clk 0:01:09]}  e5 {[%clk 0:01:24]} 26. Bg3 {[%clk 0:01:06]}  Rc8 {[%clk 0:00:56]} 27. Ra1 {[%clk 0:01:04]}  Qc6 {[%clk 0:00:56]} 28. Ra7 {[%clk 0:00:52]}  Qxb7 {[%clk 0:00:52]} 29. Rxb7 {[%clk 0:00:52]}  Rxc2 {[%clk 0:00:45]} 30. Rxb5 {[%clk 0:00:51]}  f5 {[%clk 0:00:38]} 31. Bh4 {[%clk 0:00:48]}  Rc8 {[%clk 0:00:19]} 32. Rb7 {[%clk 0:00:46]}  e4 {[%clk 0:00:15]} 33. dxe4 {[%clk 0:00:43]}  fxe4 {[%clk 0:00:16]} 34. Be7+ {[%clk 0:00:41]}  Kg8 {[%clk 0:00:17]} 35. Bxd6 {[%clk 0:00:41]}  d3 {[%clk 0:00:17]} 36. Bf4 {[%clk 0:00:40]}  Rd8 {[%clk 0:00:10]} 37. Bd2 {[%clk 0:00:37]}  Bd4 {[%clk 0:00:09]} 38. b4 {[%clk 0:00:35]}  Rf8 {[%clk 0:00:09]} 39. Be1 {[%clk 0:00:34]}  e3 {[%clk 0:00:07]} 40. fxe3 {[%clk 0:00:33]}  Bxe3+ {[%clk 0:00:08]} 41. Kh2 {[%clk 0:00:33]}  d2 {[%clk 0:00:08]} 42. Bxd2 {[%clk 0:00:31]}  Bxd2 {[%clk 0:00:09]} 43. b5 {[%clk 0:00:31]}  Rf1 {[%clk 0:00:07]} 44. Re7 {[%clk 0:00:28]}  Rb1 {[%clk 0:00:04]} 45. Rb7 {[%clk 0:00:25]}  Bf4+ {[%clk 0:00:04]} 46. g3 {[%clk 0:00:25]}  Rb2+ {[%clk 0:00:05]} 47. Kg1 {[%clk 0:00:25]}  Bxg3 {[%clk 0:00:06]} 48. Kf1 {[%clk 0:00:16]}  h5 {[%clk 0:00:06]} 49. b6 {[%clk 0:00:16]}  h4 {[%clk 0:00:05]} 50. Kg1 {[%clk 0:00:06]}  Bf2+ {[%clk 0:00:04]} 51. Kg2 {[%clk 0:00:05]}  Bxb6+ {[%clk 0:00:04]} 52. Kf3 {[%clk 0:00:05]}  Bd4 {[%clk 0:00:03]} 53. Rd7 {[%clk 0:00:03]}  Bf6 {[%clk 0:00:03]} 54. Kg4 {[%clk 0:00:03]}  Rb4+ {[%clk 0:00:03]} 55. Kf3 {[%clk 0:00:02]}  Rb3+ {[%clk 0:00:04]} 56. Ke4 {[%clk 0:00:02]}  Rxh3 {[%clk 0:00:04]} 57. Rc7 {[%clk 0:00:01]}  Rg3 {[%clk 0:00:04]} 58. Rc8+ {[%clk 0:00:01]}  Kg7 {[%clk 0:00:04]} 59. Rc7+ {[%clk 0:00:02]}  Kh6 {[%clk 0:00:05]} 60. Rc6 {[%clk 0:00:02]}  Rg4+ {[%clk 0:00:06]} 61. Kf3 {[%clk 0:00:01]}  Ra4 {[%clk 0:00:06]} 62. Rxf6 {[%clk 0:00:01]}  Kg5 {[%clk 0:00:06]} 0-1


[Site "https://www.chess.com"]

[Event "Titled Tuesday Blitz May 10 Early 2022"]
[White "Yilmaz, Mustafa"]
[Black "Song, Michael"]
[WhiteFideId "6302718"]
[BlackFideId "2613190"]
[WhiteElo "2568"]
[BlackElo "2274"]
[Result "1-0"]
[Round "02"]
[TimeControl "180+1"]
[Date "2022.05.11"]
[WhiteClock "0:02:01"]
[BlackClock "0:02:01"]

1. d4 {[%clk 0:03:00]}  f5 {[%clk 0:02:58]} 2. c4 {[%clk 0:02:56]}  Nf6 {[%clk 0:02:58]} 3. Nf3 {[%clk 0:02:57]}  g6 {[%clk 0:02:57]} 4. Nc3 {[%clk 0:02:55]}  Bg7 {[%clk 0:02:57]} 5. e3 {[%clk 0:02:56]}  O-O {[%clk 0:02:56]} 6. b4 {[%clk 0:02:56]}  e6 {[%clk 0:02:56]} 7. Be2 {[%clk 0:02:55]}  Qe7 {[%clk 0:02:56]} 8. Qb3 {[%clk 0:02:54]}  d6 {[%clk 0:02:55]} 9. c5 {[%clk 0:02:51]}  Kh8 {[%clk 0:02:53]} 10. O-O {[%clk 0:02:51]}  Ne4 {[%clk 0:02:47]} 11. Bb2 {[%clk 0:02:43]}  Nc6 {[%clk 0:02:46]} 12. b5 {[%clk 0:02:41]}  Nd8 {[%clk 0:02:46]} 13. cxd6 {[%clk 0:02:39]}  cxd6 {[%clk 0:02:46]} 14. Nxe4 {[%clk 0:02:40]}  fxe4 {[%clk 0:02:45]} 15. Nd2 {[%clk 0:02:40]}  d5 {[%clk 0:02:27]} 16. Ba3 {[%clk 0:02:40]}  Qe8 {[%clk 0:02:26]} 17. Bxf8 {[%clk 0:02:38]}  Bxf8 {[%clk 0:02:27]} 18. f3 {[%clk 0:02:35]}  exf3 {[%clk 0:02:27]} 19. Nxf3 {[%clk 0:02:36]}  Nf7 {[%clk 0:02:27]} 20. Rac1 {[%clk 0:02:25]}  Bd7 {[%clk 0:02:27]} 21. a4 {[%clk 0:02:17]}  Bd6 {[%clk 0:02:25]} 22. Bd3 {[%clk 0:02:10]}  e5 {[%clk 0:02:07]} 23. Qxd5 {[%clk 0:02:03]}  Be6 {[%clk 0:02:07]} 24. Qxb7 {[%clk 0:02:02]}  Rb8 {[%clk 0:02:07]} 25. Qc6 {[%clk 0:02:02]}  Rb6 {[%clk 0:02:01]} 26. Qxe8+ {[%clk 0:02:01]} 1-0


[Site "https://www.chess.com"]

[Event "Titled Tuesday Blitz May 10 Early 2022"]
[White "Yurtseven, Melih"]
[Black "Fajdetic, Hrvoje"]
[WhiteFideId "6312160"]
[BlackFideId "14501945"]
[WhiteElo "2160"]
[BlackElo "2172"]
[Result "1-0"]
[Round "02"]
[TimeControl "180+1"]
[Date "2022.05.11"]
[WhiteClock "0:01:17"]
[BlackClock "0:00:07"]

1. c4 {[%clk 0:02:56]}  f5 {[%clk 0:02:57]} 2. Nc3 {[%clk 0:02:56]}  Nf6 {[%clk 0:02:56]} 3. d3 {[%clk 0:02:56]}  e5 {[%clk 0:02:56]} 4. e4 {[%clk 0:02:56]}  d6 {[%clk 0:02:57]} 5. Nge2 {[%clk 0:02:53]}  Nc6 {[%clk 0:02:56]} 6. exf5 {[%clk 0:02:51]}  Bxf5 {[%clk 0:02:56]} 7. d4 {[%clk 0:02:50]}  exd4 {[%clk 0:02:55]} 8. Nxd4 {[%clk 0:02:50]}  Nxd4 {[%clk 0:02:54]} 9. Qxd4 {[%clk 0:02:51]}  Qe7+ {[%clk 0:02:47]} 10. Be2 {[%clk 0:02:48]}  g6 {[%clk 0:02:45]} 11. Bg5 {[%clk 0:02:46]}  Bg7 {[%clk 0:02:44]} 12. Qd2 {[%clk 0:02:10]}  c6 {[%clk 0:02:36]} 13. O-O {[%clk 0:02:01]}  h6 {[%clk 0:02:35]} 14. Bh4 {[%clk 0:01:59]}  g5 {[%clk 0:02:30]} 15. Bg3 {[%clk 0:01:59]}  O-O-O {[%clk 0:02:28]} 16. Rfe1 {[%clk 0:01:59]}  Qd7 {[%clk 0:01:45]} 17. Rad1 {[%clk 0:01:56]}  Ne8 {[%clk 0:01:12]} 18. Bf3 {[%clk 0:01:48]}  h5 {[%clk 0:01:04]} 19. Qxg5 {[%clk 0:01:47]}  Bf6 {[%clk 0:01:02]} 20. Qd2 {[%clk 0:01:42]}  h4 {[%clk 0:01:00]} 21. Bf4 {[%clk 0:01:41]}  Bg4 {[%clk 0:00:53]} 22. Bxg4 {[%clk 0:01:34]}  Qxg4 {[%clk 0:00:54]} 23. h3 {[%clk 0:01:34]}  Qg7 {[%clk 0:00:46]} 24. Ne4 {[%clk 0:01:33]}  Be5 {[%clk 0:00:39]} 25. Bxe5 {[%clk 0:01:30]}  Qxe5 {[%clk 0:00:38]} 26. c5 {[%clk 0:01:29]}  Qg7 {[%clk 0:00:13]} 27. cxd6 {[%clk 0:01:29]}  Rd7 {[%clk 0:00:11]} 28. Nc5 {[%clk 0:01:22]}  Rg8 {[%clk 0:00:10]} 29. f3 {[%clk 0:01:17]}  Rxd6 {[%clk 0:00:09]} 30. Rxe8+ {[%clk 0:01:18]}  Kc7 {[%clk 0:00:07]} 31. Qxd6+ {[%clk 0:01:17]} 1-0


[Site "https://www.chess.com"]

[Event "Titled Tuesday Blitz May 10 Early 2022"]
[White "Zaksaite, Salomeja"]
[Black "Aldokhin, Ivan"]
[WhiteFideId "12801496"]
[BlackFideId "24115720"]
[WhiteElo "1953"]
[BlackElo "2231"]
[Result "0-1"]
[Round "02"]
[TimeControl "180+1"]
[Date "2022.05.11"]
[WhiteClock "0:00:01"]
[BlackClock "0:00:14"]

1. e4 {[%clk 0:02:58]}  c5 {[%clk 0:02:59]} 2. Nf3 {[%clk 0:02:57]}  e6 {[%clk 0:02:59]} 3. g3 {[%clk 0:02:55]}  Nf6 {[%clk 0:02:59]} 4. Qe2 {[%clk 0:02:51]}  Nc6 {[%clk 0:02:58]} 5. Bg2 {[%clk 0:02:48]}  d5 {[%clk 0:02:57]} 6. e5 {[%clk 0:02:43]}  Nd7 {[%clk 0:02:56]} 7. c3 {[%clk 0:02:43]}  b5 {[%clk 0:02:37]} 8. O-O {[%clk 0:02:39]}  a5 {[%clk 0:02:36]} 9. d4 {[%clk 0:02:39]}  Ba6 {[%clk 0:02:36]} 10. Rd1 {[%clk 0:02:36]}  b4 {[%clk 0:02:35]} 11. Qe3 {[%clk 0:02:34]}  Be7 {[%clk 0:02:32]} 12. Nbd2 {[%clk 0:02:33]}  a4 {[%clk 0:02:23]} 13. Nf1 {[%clk 0:02:32]}  a3 {[%clk 0:02:21]} 14. h4 {[%clk 0:02:30]}  axb2 {[%clk 0:02:11]} 15. Bxb2 {[%clk 0:02:29]}  Nb6 {[%clk 0:02:06]} 16. dxc5 {[%clk 0:02:07]}  Nc4 {[%clk 0:02:06]} 17. Qc1 {[%clk 0:02:07]}  Nxb2 {[%clk 0:01:51]} 18. Qxb2 {[%clk 0:02:07]}  Bxc5 {[%clk 0:01:51]} 19. cxb4 {[%clk 0:02:05]}  Nxb4 {[%clk 0:01:47]} 20. Rac1 {[%clk 0:02:00]}  Qa5 {[%clk 0:01:22]} 21. Qc3 {[%clk 0:01:46]}  Bc4 {[%clk 0:01:08]} 22. Rd2 {[%clk 0:01:12]}  Nxa2 {[%clk 0:00:59]} 23. Qxa5 {[%clk 0:01:04]}  Rxa5 {[%clk 0:01:00]} 24. Ra1 {[%clk 0:00:43]}  O-O {[%clk 0:01:00]} 25. Ne3 {[%clk 0:00:43]}  Bxe3 {[%clk 0:01:00]} 26. fxe3 {[%clk 0:00:43]}  Rfa8 {[%clk 0:00:59]} 27. Nd4 {[%clk 0:00:17]}  Nc3 {[%clk 0:00:58]} 28. Rxa5 {[%clk 0:00:13]}  Rxa5 {[%clk 0:00:57]} 29. Rb2 {[%clk 0:00:12]}  Ra8 {[%clk 0:00:55]} 30. Rb4 {[%clk 0:00:09]}  Rc8 {[%clk 0:00:41]} 31. Kf2 {[%clk 0:00:07]}  h6 {[%clk 0:00:39]} 32. Bh3 {[%clk 0:00:06]}  Ne4+ {[%clk 0:00:38]} 33. Kf3 {[%clk 0:00:05]}  Bd3 {[%clk 0:00:34]} 34. Nxe6 {[%clk 0:00:01]}  Re8 {[%clk 0:00:16]} 35. Nf4 {[%clk 0:00:01]}  Bc4 {[%clk 0:00:14]} 0-1


[Site "https://www.chess.com"]

[Event "Titled Tuesday Blitz May 10 Early 2022"]
[White "Zhao, Jun"]
[Black "Levitskiy, Andrey"]
[WhiteFideId "8602522"]
[BlackFideId "14132885"]
[WhiteElo "2547"]
[BlackElo "2301"]
[Result "1-0"]
[Round "02"]
[TimeControl "180+1"]
[Date "2022.05.10"]
[WhiteClock "0:01:08"]
[BlackClock "0:00:02"]

1. d4 {[%clk 0:02:56]}  Nf6 {[%clk 0:02:52]} 2. Bf4 {[%clk 0:02:56]}  d5 {[%clk 0:02:50]} 3. e3 {[%clk 0:02:56]}  c5 {[%clk 0:02:49]} 4. Nf3 {[%clk 0:02:55]}  Nc6 {[%clk 0:02:44]} 5. Nbd2 {[%clk 0:02:55]}  cxd4 {[%clk 0:02:38]} 6. exd4 {[%clk 0:02:55]}  Bf5 {[%clk 0:02:38]} 7. c3 {[%clk 0:02:52]}  e6 {[%clk 0:02:39]} 8. Be2 {[%clk 0:02:51]}  Bd6 {[%clk 0:02:39]} 9. Bxd6 {[%clk 0:02:50]}  Qxd6 {[%clk 0:02:40]} 10. O-O {[%clk 0:02:50]}  O-O {[%clk 0:02:34]} 11. Nh4 {[%clk 0:02:48]}  Be4 {[%clk 0:02:34]} 12. Nxe4 {[%clk 0:02:40]}  dxe4 {[%clk 0:02:34]} 13. g3 {[%clk 0:02:40]}  Rad8 {[%clk 0:02:23]} 14. Qb3 {[%clk 0:02:40]}  b6 {[%clk 0:02:11]} 15. Rad1 {[%clk 0:02:37]}  Nd5 {[%clk 0:01:57]} 16. Ng2 {[%clk 0:02:18]}  f5 {[%clk 0:01:53]} 17. f3 {[%clk 0:02:16]}  Nf6 {[%clk 0:01:29]} 18. fxe4 {[%clk 0:02:07]}  Nxe4 {[%clk 0:01:07]} 19. Nf4 {[%clk 0:02:07]}  Rf6 {[%clk 0:01:06]} 20. Bf3 {[%clk 0:02:03]}  Na5 {[%clk 0:00:57]} 21. Qa4 {[%clk 0:01:58]}  g5 {[%clk 0:00:33]} 22. Nd3 {[%clk 0:01:43]}  Nxg3 {[%clk 0:00:22]} 23. hxg3 {[%clk 0:01:43]}  Qxg3+ {[%clk 0:00:23]} 24. Bg2 {[%clk 0:01:43]}  Rh6 {[%clk 0:00:23]} 25. Rf3 {[%clk 0:01:28]}  Qh2+ {[%clk 0:00:19]} 26. Kf1 {[%clk 0:01:27]}  g4 {[%clk 0:00:15]} 27. Rf2 {[%clk 0:01:23]}  Qc7 {[%clk 0:00:08]} 28. Ne5 {[%clk 0:01:14]}  a6 {[%clk 0:00:08]} 29. Re1 {[%clk 0:01:10]}  b5 {[%clk 0:00:08]} 30. Qc2 {[%clk 0:01:09]}  Rd6 {[%clk 0:00:02]} 31. Qd2 {[%clk 0:01:08]} 1-0


[Site "https://www.chess.com"]

[Event "Titled Tuesday Blitz May 10 Early 2022"]
[White "Aggelis, Nikolaos"]
[Black "Skuhala, Barbara"]
[WhiteFideId "4213220"]
[BlackFideId "14605465"]
[WhiteElo "2154"]
[BlackElo "2155"]
[Result "1-0"]
[Round "03"]
[TimeControl "180+1"]
[Date "2022.05.11"]
[WhiteClock "0:02:23"]
[BlackClock "0:02:22"]

1. d4 {[%clk 0:03:00]}  Nf6 {[%clk 0:02:57]} 2. g3 {[%clk 0:02:56]}  e6 {[%clk 0:02:57]} 3. Bg2 {[%clk 0:02:55]}  d5 {[%clk 0:02:56]} 4. Nf3 {[%clk 0:02:56]}  c6 {[%clk 0:02:54]} 5. O-O {[%clk 0:02:57]}  Be7 {[%clk 0:02:53]} 6. c4 {[%clk 0:02:53]}  O-O {[%clk 0:02:53]} 7. Nbd2 {[%clk 0:02:53]}  Nbd7 {[%clk 0:02:51]} 8. b3 {[%clk 0:02:53]}  b6 {[%clk 0:02:50]} 9. Bb2 {[%clk 0:02:54]}  Bb7 {[%clk 0:02:49]} 10. Ne5 {[%clk 0:02:55]}  Rc8 {[%clk 0:02:48]} 11. Rc1 {[%clk 0:02:43]}  Nxe5 {[%clk 0:02:47]} 12. dxe5 {[%clk 0:02:43]}  Nd7 {[%clk 0:02:46]} 13. e4 {[%clk 0:02:44]}  dxc4 {[%clk 0:02:46]} 14. Nxc4 {[%clk 0:02:44]}  c5 {[%clk 0:02:46]} 15. Nd6 {[%clk 0:02:44]}  Rb8 {[%clk 0:02:44]} 16. Qh5 {[%clk 0:02:39]}  Bc6 {[%clk 0:02:39]} 17. Rfd1 {[%clk 0:02:39]}  Qc7 {[%clk 0:02:37]} 18. f4 {[%clk 0:02:36]}  f6 {[%clk 0:02:22]} 19. Bh3 {[%clk 0:02:23]} 1-0


[Site "https://www.chess.com"]

[Event "Titled Tuesday Blitz May 10 Early 2022"]
[White "Alekseenko, Kirill"]
[Black "Bilych, Olexiy"]
[WhiteFideId "4135539"]
[BlackFideId "14156504"]
[WhiteElo "2682"]
[BlackElo "2176"]
[Result "1-0"]
[Round "03"]
[TimeControl "180+1"]
[Date "2022.05.10"]
[WhiteClock "0:00:43"]
[BlackClock "0:00:01"]

1. e4 {[%clk 0:03:00]}  e5 {[%clk 0:02:59]} 2. Nf3 {[%clk 0:03:01]}  Nc6 {[%clk 0:02:59]} 3. Bb5 {[%clk 0:03:01]}  Nf6 {[%clk 0:02:59]} 4. d3 {[%clk 0:03:01]}  Bc5 {[%clk 0:02:59]} 5. Bxc6 {[%clk 0:03:01]}  dxc6 {[%clk 0:02:59]} 6. Nbd2 {[%clk 0:02:58]}  Qe7 {[%clk 0:02:58]} 7. O-O {[%clk 0:02:54]}  O-O {[%clk 0:02:46]} 8. Nb3 {[%clk 0:02:53]}  Bd6 {[%clk 0:02:44]} 9. Bg5 {[%clk 0:02:53]}  a5 {[%clk 0:02:28]} 10. a4 {[%clk 0:02:51]}  b6 {[%clk 0:02:28]} 11. Nbd2 {[%clk 0:02:42]}  Be6 {[%clk 0:02:24]} 12. h3 {[%clk 0:02:36]}  Kh8 {[%clk 0:02:02]} 13. d4 {[%clk 0:02:33]}  Bc8 {[%clk 0:01:37]} 14. Re1 {[%clk 0:02:14]}  Ba6 {[%clk 0:01:34]} 15. c3 {[%clk 0:02:10]}  Rfe8 {[%clk 0:01:31]} 16. Qb3 {[%clk 0:01:55]}  Qe6 {[%clk 0:01:11]} 17. dxe5 {[%clk 0:01:54]}  Bxe5 {[%clk 0:00:52]} 18. Qxe6 {[%clk 0:01:54]}  Rxe6 {[%clk 0:00:53]} 19. Nxe5 {[%clk 0:01:55]}  Rxe5 {[%clk 0:00:53]} 20. Bxf6 {[%clk 0:01:55]}  gxf6 {[%clk 0:00:54]} 21. Nf3 {[%clk 0:01:56]}  Re7 {[%clk 0:00:48]} 22. Nd4 {[%clk 0:01:53]}  c5 {[%clk 0:00:47]} 23. Nf5 {[%clk 0:01:53]}  Rd7 {[%clk 0:00:47]} 24. Rad1 {[%clk 0:01:38]}  Rad8 {[%clk 0:00:47]} 25. Rxd7 {[%clk 0:01:38]}  Rxd7 {[%clk 0:00:48]} 26. e5 {[%clk 0:01:39]}  fxe5 {[%clk 0:00:30]} 27. Rxe5 {[%clk 0:01:39]}  h5 {[%clk 0:00:30]} 28. Ne3 {[%clk 0:01:20]}  h4 {[%clk 0:00:20]} 29. Rh5+ {[%clk 0:01:19]}  Kg7 {[%clk 0:00:20]} 30. Rxh4 {[%clk 0:01:19]}  Rd2 {[%clk 0:00:21]} 31. b4 {[%clk 0:01:04]}  cxb4 {[%clk 0:00:13]} 32. cxb4 {[%clk 0:01:05]}  axb4 {[%clk 0:00:13]} 33. Rxb4 {[%clk 0:01:06]}  Kf6 {[%clk 0:00:09]} 34. h4 {[%clk 0:01:05]}  Rd6 {[%clk 0:00:05]} 35. Rf4+ {[%clk 0:01:02]}  Kg6 {[%clk 0:00:04]} 36. g4 {[%clk 0:00:58]}  c5 {[%clk 0:00:05]} 37. h5+ {[%clk 0:00:59]}  Kg5 {[%clk 0:00:03]} 38. Rxf7 {[%clk 0:00:57]}  c4 {[%clk 0:00:03]} 39. Kh2 {[%clk 0:00:50]}  c3 {[%clk 0:00:02]} 40. Kg3 {[%clk 0:00:49]}  Rd3 {[%clk 0:00:01]} 41. f4+ {[%clk 0:00:41]}  Kh6 {[%clk 0:00:02]} 42. Kh4 {[%clk 0:00:42]}  Rd4 {[%clk 0:00:01]} 43. g5# {[%clk 0:00:43]} 1-0


[Site "https://www.chess.com"]

[Event "Titled Tuesday Blitz May 10 Early 2022"]
[White "Ardila, Oscar Humberto"]
[Black "Tanenbaum, Zachary"]
[WhiteFideId "4404742"]
[BlackFideId "2060850"]
[WhiteElo "1928"]
[BlackElo "2168"]
[Result "0-1"]
[Round "03"]
[TimeControl "180+1"]
[Date "2022.05.11"]
[WhiteClock "0:00:26"]
[BlackClock "0:01:19"]

1. d4 {[%clk 0:03:00]}  d5 {[%clk 0:02:59]} 2. c4 {[%clk 0:03:01]}  Bf5 {[%clk 0:02:58]} 3. Nf3 {[%clk 0:02:58]}  e6 {[%clk 0:02:58]} 4. Nc3 {[%clk 0:02:54]}  c6 {[%clk 0:02:58]} 5. cxd5 {[%clk 0:02:54]}  exd5 {[%clk 0:02:58]} 6. Bf4 {[%clk 0:02:54]}  Bd6 {[%clk 0:02:58]} 7. Bxd6 {[%clk 0:02:54]}  Qxd6 {[%clk 0:02:59]} 8. e3 {[%clk 0:02:54]}  Nf6 {[%clk 0:02:58]} 9. Be2 {[%clk 0:02:54]}  Nbd7 {[%clk 0:02:57]} 10. O-O {[%clk 0:02:54]}  O-O {[%clk 0:02:57]} 11. Rc1 {[%clk 0:02:53]}  a5 {[%clk 0:02:36]} 12. a3 {[%clk 0:02:51]}  Ne4 {[%clk 0:02:22]} 13. Na4 {[%clk 0:02:47]}  Bg6 {[%clk 0:02:15]} 14. Nd2 {[%clk 0:02:18]}  f5 {[%clk 0:02:06]} 15. Nc3 {[%clk 0:02:04]}  Nxd2 {[%clk 0:01:52]} 16. Qxd2 {[%clk 0:02:04]}  f4 {[%clk 0:01:52]} 17. Bd3 {[%clk 0:01:53]}  f3 {[%clk 0:01:49]} 18. Bxg6 {[%clk 0:01:42]}  Qxg6 {[%clk 0:01:48]} 19. g3 {[%clk 0:01:34]}  Qg4 {[%clk 0:01:45]} 20. Kh1 {[%clk 0:01:34]}  Qh3 {[%clk 0:01:43]} 21. Rg1 {[%clk 0:01:33]}  Nf6 {[%clk 0:01:38]} 22. g4 {[%clk 0:01:05]}  Nxg4 {[%clk 0:01:38]} 23. Rxg4 {[%clk 0:01:04]}  Qxg4 {[%clk 0:01:39]} 24. Rg1 {[%clk 0:01:03]}  Qh5 {[%clk 0:01:33]} 25. e4 {[%clk 0:00:56]}  dxe4 {[%clk 0:01:32]} 26. Nxe4 {[%clk 0:00:54]}  Rae8 {[%clk 0:01:30]} 27. Nd6 {[%clk 0:00:34]}  Re2 {[%clk 0:01:21]} 28. Qd3 {[%clk 0:00:26]}  Rxf2 {[%clk 0:01:20]} 29. Qb3+ {[%clk 0:00:26]}  Kh8 {[%clk 0:01:19]} 0-1


[Site "https://www.chess.com"]

[Event "Titled Tuesday Blitz May 10 Early 2022"]
[White "Azarov, Sergei"]
[Black "Rustemov, Alexander"]
[WhiteFideId "13501470"]
[BlackFideId "4119002"]
[WhiteElo "2494"]
[BlackElo "2705"]
[Result "1/2-1/2"]
[Round "03"]
[TimeControl "180+1"]
[Date "2022.05.10"]
[WhiteClock "0:00:03"]
[BlackClock "0:00:05"]

1. e4 {[%clk 0:03:00]}  e6 {[%clk 0:03:00]} 2. d4 {[%clk 0:03:00]}  d5 {[%clk 0:03:00]} 3. Nd2 {[%clk 0:03:01]}  dxe4 {[%clk 0:03:01]} 4. Nxe4 {[%clk 0:03:01]}  Bd7 {[%clk 0:03:01]} 5. Nf3 {[%clk 0:03:01]}  Bc6 {[%clk 0:03:02]} 6. Bd3 {[%clk 0:03:01]}  Nd7 {[%clk 0:03:02]} 7. O-O {[%clk 0:03:01]}  Ngf6 {[%clk 0:03:03]} 8. Ng3 {[%clk 0:02:56]}  Be7 {[%clk 0:03:02]} 9. Qe2 {[%clk 0:02:56]}  Bxf3 {[%clk 0:03:01]} 10. Qxf3 {[%clk 0:02:56]}  c6 {[%clk 0:03:02]} 11. c3 {[%clk 0:02:51]}  O-O {[%clk 0:03:02]} 12. Re1 {[%clk 0:02:51]}  Re8 {[%clk 0:03:00]} 13. Bd2 {[%clk 0:02:50]}  Qa5 {[%clk 0:02:51]} 14. a3 {[%clk 0:02:45]}  Qd5 {[%clk 0:02:49]} 15. Ne4 {[%clk 0:02:42]}  Qh5 {[%clk 0:02:45]} 16. Qg3 {[%clk 0:02:35]}  Nxe4 {[%clk 0:02:26]} 17. Rxe4 {[%clk 0:02:30]}  Qd5 {[%clk 0:01:56]} 18. Rae1 {[%clk 0:02:22]}  Rad8 {[%clk 0:01:54]} 19. Rg4 {[%clk 0:01:57]}  g6 {[%clk 0:01:50]} 20. h4 {[%clk 0:01:19]}  Bd6 {[%clk 0:01:26]} 21. Qh3 {[%clk 0:01:16]}  f5 {[%clk 0:01:20]} 22. Rg5 {[%clk 0:01:12]}  Be7 {[%clk 0:01:18]} 23. Rg3 {[%clk 0:01:08]}  Bd6 {[%clk 0:01:17]} 24. Rf3 {[%clk 0:01:01]}  e5 {[%clk 0:01:15]} 25. Bg5 {[%clk 0:00:48]}  Be7 {[%clk 0:01:09]} 26. Bxf5 {[%clk 0:00:19]}  gxf5 {[%clk 0:01:02]} 27. Qxf5 {[%clk 0:00:19]}  e4 {[%clk 0:00:49]} 28. Qg4 {[%clk 0:00:09]}  Bxg5 {[%clk 0:00:44]} 29. Rf5 {[%clk 0:00:09]}  Qe6 {[%clk 0:00:31]} 30. Rxe4 {[%clk 0:00:06]}  Qxe4 {[%clk 0:00:21]} 31. Rxg5+ {[%clk 0:00:03]}  Kh8 {[%clk 0:00:13]} 32. Rg8+ {[%clk 0:00:03]}  Rxg8 {[%clk 0:00:14]} 33. Qxe4 {[%clk 0:00:04]}  Rg7 {[%clk 0:00:12]} 34. g3 {[%clk 0:00:03]}  Nf6 {[%clk 0:00:11]} 35. Qf5 {[%clk 0:00:03]}  Rf8 {[%clk 0:00:11]} 36. h5 {[%clk 0:00:03]}  Rgf7 {[%clk 0:00:12]} 37. h6 {[%clk 0:00:03]}  Nd5 {[%clk 0:00:11]} 38. Qe5+ {[%clk 0:00:03]}  Rf6 {[%clk 0:00:09]} 39. c4 {[%clk 0:00:03]}  Nb6 {[%clk 0:00:09]} 40. b3 {[%clk 0:00:03]}  Kg8 {[%clk 0:00:08]} 41. Qe7 {[%clk 0:00:03]}  R6f7 {[%clk 0:00:07]} 42. Qg5+ {[%clk 0:00:02]}  Kh8 {[%clk 0:00:07]} 43. Qe5+ {[%clk 0:00:03]}  Kg8 {[%clk 0:00:08]} 44. d5 {[%clk 0:00:03]}  cxd5 {[%clk 0:00:07]} 45. cxd5 {[%clk 0:00:03]}  Nd7 {[%clk 0:00:08]} 46. Qg5+ {[%clk 0:00:03]}  Kh8 {[%clk 0:00:08]} 47. d6 {[%clk 0:00:04]}  Nf6 {[%clk 0:00:08]} 48. Qe5 {[%clk 0:00:04]}  Kg8 {[%clk 0:00:08]} 49. Qe6 {[%clk 0:00:04]}  Re8 {[%clk 0:00:07]} 50. Qf5 {[%clk 0:00:03]}  Rd8 {[%clk 0:00:07]} 51. Qg5+ {[%clk 0:00:03]}  Kf8 {[%clk 0:00:07]} 52. Qe5 {[%clk 0:00:04]}  Re8 {[%clk 0:00:05]} 53. Qc5 {[%clk 0:00:04]}  Nd7 {[%clk 0:00:04]} 54. Qd4 {[%clk 0:00:03]}  Kg8 {[%clk 0:00:04]} 55. Qg4+ {[%clk 0:00:03]}  Kf8 {[%clk 0:00:04]} 56. Qd4 {[%clk 0:00:03]}  Kg8 {[%clk 0:00:04]} 57. Qg4+ {[%clk 0:00:03]}  Kf8 {[%clk 0:00:05]} 58. Qd4 {[%clk 0:00:03]} 1/2-1/2


[Site "https://www.chess.com"]